bitfinex-derivatives/quotes_BTCF0:USTF0_20260314
["timestamp","ask_amount","ask_price","bid_price","bid_amount"]
[1773489047541,0.0014,70771.0,70761.0,0.00898]
[1773489047932,0.0014,70771.0,70761.0,0.051369]
[1773489048443,0.01912817,70771.0,70761.0,0.00898]
[1773489049844,0.01912817,70771.0,70761.0,0.051369]
[1773489051444,0.01912817,70771.0,70762.0,0.042388]
[1773489052442,0.0014,70771.0,70762.0,0.042388]
[1773489054745,0.0014,70771.0,70761.0,0.00898]
[1773489055246,0.0014,70771.0,70761.0,0.051369]
[1773489057748,0.0014,70771.0,70763.0,0.042388]
[1773489061047,0.0014,70770.0,70761.0,0.00898]
[1773489061244,0.0014,70770.0,70764.0,0.042387]
[1773489063346,0.042372,70791.0,70762.0,0.00987672]
[1773489063649,0.043772,70790.0,70776.0,0.04378066]
[1773489063943,0.0014,70789.0,70776.0,0.04378066]
[1773489064142,0.042372,70790.0,70776.0,0.04378066]
[1773489064342,0.01038,70789.0,70778.0,0.04365026]
[1773489064536,0.0014,70788.0,70778.0,0.04365026]
[1773489065350,0.01038,70788.0,70778.0,0.04365026]
[1773489066749,0.0014,70787.0,70778.0,0.04365026]
[1773489068145,0.0014,70787.0,70778.0,0.042379]
[1773489071361,0.00898,70787.0,70772.0,0.00898]
[1773489071561,0.0014,70786.0,70772.0,0.00898]
[1773489071951,0.0014,70785.0,70772.0,0.00898]
[1773489072151,0.01038,70787.0,70781.0,0.042377]
[1773489072860,0.0014,70786.0,70772.0,0.00898]
[1773489074961,0.0014,70786.0,70780.0,0.042377]
[1773489075856,0.0014,70786.0,70772.0,0.00898]
[1773489075857,0.00897,70795.0,70772.0,0.00898]
[1773489076160,0.0014,70794.0,70784.0,0.042375]
[1773489076550,0.0014,70793.0,70784.0,0.042375]
[1773489077962,0.0014,70792.0,70784.0,0.042375]
[1773489078354,0.0014,70792.0,70785.0,0.042375]
[1773489078554,0.01990405,70792.0,70783.0,0.042376]
[1773489078964,0.0014,70792.0,70783.0,0.042376]
[1773489083558,0.00897,70795.0,70774.0,0.042382]
[1773489083767,0.0014,70794.0,70776.0,0.0014]
[1773489084971,0.0014,70794.0,70786.0,0.042374]
[1773489085264,0.0014,70794.0,70776.0,0.0014]
[1773489086968,0.0014,70794.0,70788.0,0.042373]
[1773489088455,0.042366,70800.0,70788.0,0.042373]
[1773489088456,0.11614712,70800.0,70788.0,0.042373]
[1773489088673,0.042342,70841.0,70790.0,0.14756224]
[1773489088862,0.07378112,70830.0,70804.0,0.16906881]
[1773489089061,0.01848922,70829.0,70805.0,0.0014]
[1773489089267,0.01848922,70828.0,70806.0,0.0014]
[1773489089569,0.02702144,70821.0,70808.0,0.042361]
[1773489089773,0.0014,70820.0,70810.0,0.04236]
[1773489090069,0.69813569,70820.0,70807.0,0.042361]
[1773489090372,0.69813569,70820.0,70804.0,0.001]
[1773489090373,0.69813569,70820.0,70808.0,0.26871518]
[1773489090567,0.62435457,70820.0,70805.0,0.042363]
[1773489090767,0.00847321,70812.0,70806.0,0.26873274]
[1773489090970,0.00987321,70812.0,70807.0,0.26873274]
[1773489091273,0.63282778,70812.0,70805.0,0.042363]
[1773489091473,0.63282778,70812.0,70806.0,0.26864502]
[1773489091672,0.63282778,70812.0,70805.0,0.042363]
[1773489091862,0.63282778,70812.0,70806.0,0.26864475]
[1773489092062,0.63282778,70812.0,70805.0,0.042363]
[1773489092263,0.63282778,70812.0,70806.0,0.26858586]
[1773489092464,0.63282778,70812.0,70805.0,0.042363]
[1773489092665,0.63282778,70812.0,70806.0,0.26858576]
[1773489092865,0.00897,70821.0,70803.0,0.01654806]
[1773489093168,0.62435457,70820.0,70808.0,0.042361]
[1773489093464,0.62435457,70820.0,70806.0,0.042362]
[1773489093671,0.00847321,70817.0,70806.0,0.042362]
[1773489094379,0.00847321,70817.0,70804.0,0.05891206]
[1773489094562,0.63142778,70817.0,70805.0,0.26846715]
[1773489094763,0.63142778,70817.0,70804.0,0.05891206]
[1773489094958,0.63142778,70817.0,70805.0,0.26846735]
[1773489095178,0.63142778,70817.0,70804.0,0.05891206]
[1773489095376,0.63142778,70817.0,70805.0,0.26841147]
[1773489095564,0.63142778,70817.0,70804.0,0.05891206]
[1773489095765,0.63142778,70817.0,70805.0,0.26841147]
[1773489095966,0.62295457,70817.0,70804.0,0.042364]
[1773489096772,0.01968121,70819.0,70804.0,0.042364]
[1773489097078,0.00847321,70812.0,70798.0,0.01794806]
[1773489097279,0.00987321,70812.0,70799.0,0.2683624]
[1773489097466,0.00987321,70812.0,70800.0,0.2683624]
[1773489097666,0.00987321,70812.0,70801.0,0.2683624]
[1773489097867,0.00987321,70812.0,70802.0,0.2683624]
[1773489098078,0.00987321,70812.0,70798.0,0.01794806]
[1773489098079,0.63282778,70812.0,70798.0,0.0014]
[1773489098375,0.01970905,70810.0,70799.0,0.26839394]
[1773489098574,0.01970905,70809.0,70779.0,0.18561687]
[1773489098773,0.01970905,70802.0,70780.0,0.01794806]
[1773489099079,0.0014,70801.0,70782.0,0.01654806]
[1773489099282,0.00987321,70801.0,70782.0,0.01654806]
[1773489100076,0.00987321,70801.0,70789.0,0.042372]
[1773489100375,0.0014,70801.0,70789.0,0.042372]
[1773489100580,0.07367724,70800.0,70788.0,0.042373]
[1773489100774,0.62435457,70801.0,70789.0,0.042372]
[1773489101181,0.63282778,70801.0,70789.0,0.042372]
[1773489101881,0.63282778,70801.0,70783.0,0.01794806]
[1773489101882,0.0014,70800.0,70790.0,0.042371]
[1773489103481,0.0014,70800.0,70788.0,0.042373]
[1773489103673,0.0014,70800.0,70789.0,0.042372]
[1773489103877,0.0014,70800.0,70790.0,0.042372]
[1773489104276,0.00847321,70796.0,70790.0,0.042372]
[1773489104477,0.00847321,70796.0,70783.0,0.01794806]
[1773489104678,0.62295457,70795.0,70783.0,0.01794806]
[1773489104884,0.62295457,70795.0,70783.0,0.18701687]
[1773489105081,0.62295457,70795.0,70790.0,0.042372]
[1773489105284,0.62295457,70795.0,70783.0,0.18701687]
[1773489105983,0.62295457,70795.0,70790.0,0.042372]
[1773489106283,0.62295457,70795.0,70783.0,0.18701687]
[1773489107074,0.62295457,70795.0,70790.0,0.042372]
[1773489107476,0.63142778,70795.0,70790.0,0.042372]
[1773489108086,0.62295457,70794.0,70783.0,0.0014]
[1773489108283,0.62435457,70794.0,70785.0,0.02813307]
[1773489108483,0.62435457,70794.0,70781.0,0.0007064]
[1773489108484,0.62435457,70794.0,70787.0,0.042373]
[1773489108684,2.1e-07,70790.0,70786.0,0.042374]
[1773489108983,0.62435457,70794.0,70786.0,0.042374]
[1773489110482,0.62435457,70794.0,70787.0,0.28128348]
[1773489110684,0.62435457,70794.0,70788.0,0.28128348]
[1773489110983,0.62435457,70794.0,70789.0,0.28128348]
[1773489111188,0.0014,70793.0,70790.0,0.042372]
[1773489111485,0.0014,70795.0,70790.0,0.042372]
[1773489111684,0.0014,70795.0,70790.0,0.07050507]
[1773489111886,0.0014,70795.0,70790.0,0.02813307]
[1773489113389,0.0014,70796.0,70790.0,0.02813307]
[1773489113577,0.0014,70796.0,70786.0,0.042374]
[1773489113889,0.03789893,70796.0,70787.0,0.28138892]
[1773489114074,0.03789893,70796.0,70788.0,0.28138892]
[1773489114278,0.03789893,70796.0,70789.0,0.28138892]
[1773489114478,0.03789893,70796.0,70786.0,0.042374]
[1773489114689,0.03789893,70796.0,70787.0,0.2814153]
[1773489114888,0.03789893,70796.0,70788.0,0.2814153]
[1773489115084,0.03789893,70796.0,70784.0,0.042376]
[1773489115386,0.03789893,70796.0,70785.0,0.28114648]
[1773489115588,0.03789893,70796.0,70786.0,0.28114648]
[1773489115885,0.03789893,70796.0,70787.0,0.28114648]
[1773489116085,0.03789893,70796.0,70788.0,0.28114648]
[1773489116286,0.03789893,70796.0,70789.0,0.28114648]
[1773489116486,0.03789893,70796.0,70784.0,0.042376]
[1773489116689,0.03789893,70796.0,70785.0,0.28117335]
[1773489116887,0.03789893,70796.0,70786.0,0.28117335]
[1773489117079,0.03789893,70796.0,70787.0,0.28117335]
[1773489117280,0.03789893,70796.0,70788.0,0.28117335]
[1773489117479,0.03789893,70796.0,70789.0,0.28117335]
[1773489117680,0.03789893,70796.0,70787.0,0.042373]
[1773489117889,0.03789893,70796.0,70788.0,0.28120118]
[1773489118192,0.03789893,70796.0,70789.0,0.28120118]
[1773489118391,0.03789893,70796.0,70790.0,0.28120118]
[1773489118579,0.03789893,70796.0,70787.0,0.042373]
[1773489118779,0.03789893,70796.0,70788.0,0.28122971]
[1773489119090,0.03789893,70796.0,70789.0,0.28122971]
[1773489119389,0.03789893,70796.0,70790.0,0.28122971]
[1773489119687,0.03789893,70796.0,70787.0,0.042373]
[1773489119884,0.03789893,70796.0,70788.0,0.28130909]
[1773489120086,0.03789893,70796.0,70789.0,0.28130909]
[1773489120288,0.03789893,70796.0,70790.0,0.28130909]
[1773489120490,0.03789893,70796.0,70791.0,0.28130909]
[1773489120680,0.03649893,70800.0,70783.0,0.16906881]
[1773489120883,0.042365,70802.0,70784.0,0.28075119]
[1773489121077,0.042366,70801.0,70785.0,0.28075119]
[1773489121382,0.042366,70800.0,70788.0,0.042373]
[1773489121583,0.042366,70800.0,70789.0,0.28075119]
[1773489121783,0.042366,70800.0,70790.0,0.28075119]
[1773489121986,0.0014,70799.0,70791.0,0.28075119]
[1773489122187,0.0014,70799.0,70788.0,0.042373]
[1773489122390,0.0014,70799.0,70789.0,0.28053947]
[1773489122586,0.00897,70803.0,70790.0,0.28053947]
[1773489122790,0.01037,70803.0,70792.0,0.04237]
[1773489122993,0.01037,70803.0,70793.0,0.28053947]
[1773489123192,0.01037,70803.0,70794.0,0.28053947]
[1773489123493,0.0014,70802.0,70795.0,0.28053947]
[1773489123679,0.0014,70801.0,70790.0,0.042372]
[1773489123882,0.0014,70800.0,70791.0,0.28057117]
[1773489124088,0.0014,70800.0,70792.0,0.28057117]
[1773489124289,0.03649893,70811.0,70793.0,0.28057117]
[1773489124592,0.03789893,70810.0,70794.0,0.28057117]
[1773489124791,0.03789893,70810.0,70795.0,0.28057117]
[1773489124991,0.042365,70803.0,70790.0,0.042372]
[1773489125192,0.0014,70802.0,70791.0,0.28065018]
[1773489125391,0.0014,70801.0,70792.0,0.28065018]
[1773489125695,0.0014,70800.0,70793.0,0.28065018]
[1773489125894,0.00121091,70800.0,70794.0,0.28065018]
[1773489126108,0.00121091,70800.0,70795.0,0.28065018]
[1773489126395,0.00121091,70800.0,70796.0,0.28065018]
[1773489126692,0.00121091,70800.0,70797.0,0.28065018]
[1773489126890,0.00121091,70800.0,70790.0,0.042372]
[1773489127096,0.00121091,70800.0,70791.0,0.27666671]
[1773489127298,0.00121091,70800.0,70792.0,0.27666671]
[1773489127496,0.00121091,70800.0,70793.0,0.27666671]
[1773489127796,0.00121091,70800.0,70794.0,0.27666671]
[1773489127997,0.00121091,70800.0,70795.0,0.27666671]
[1773489128296,0.00121091,70800.0,70796.0,0.27701311]
[1773489128488,0.00121091,70800.0,70797.0,0.27701311]
[1773489128690,0.00121091,70800.0,70792.0,0.042371]
[1773489128889,0.00121091,70800.0,70793.0,0.27701407]
[1773489129093,0.00121091,70800.0,70794.0,0.27701407]
[1773489129294,0.00121091,70800.0,70795.0,0.27701407]
[1773489129493,0.00121091,70800.0,70796.0,0.27701407]
[1773489129798,0.00121091,70800.0,70797.0,0.27701407]
[1773489129997,0.00121091,70800.0,70792.0,0.042371]
[1773489130197,0.00121091,70800.0,70793.0,0.27702039]
[1773489130498,0.00121091,70800.0,70792.0,0.042371]
[1773489130499,0.00121091,70800.0,70794.0,0.27702039]
[1773489130688,0.00121091,70800.0,70795.0,0.27702039]
[1773489130892,0.00121091,70800.0,70796.0,0.27702039]
[1773489131093,0.00121091,70800.0,70792.0,0.042371]
[1773489131403,0.00121091,70800.0,70793.0,0.31518174]
[1773489131593,0.00121091,70800.0,70794.0,0.27281174]
[1773489131794,0.00121091,70800.0,70795.0,0.27281174]
[1773489131994,0.00121091,70800.0,70796.0,0.27281174]
[1773489132194,0.00121091,70800.0,70793.0,0.04237]
[1773489132395,0.00121091,70800.0,70794.0,0.27281582]
[1773489132597,0.00121091,70800.0,70795.0,0.27281582]
[1773489132797,0.00121091,70800.0,70796.0,0.27281582]
[1773489132997,0.00121091,70800.0,70793.0,0.04237]
[1773489133198,0.00121091,70800.0,70794.0,0.27281581]
[1773489133397,0.00121091,70800.0,70795.0,0.27281581]
[1773489133598,0.00121091,70800.0,70796.0,0.27281581]
[1773489133900,0.00121091,70800.0,70793.0,0.04237]
[1773489134108,0.00121091,70800.0,70794.0,0.27281849]
[1773489134297,0.00121091,70800.0,70795.0,0.27281849]
[1773489134494,0.00121091,70800.0,70796.0,0.27281849]
[1773489134695,0.00121091,70800.0,70793.0,0.04237]
[1773489137809,0.00121091,70800.0,70785.0,0.0014]
[1773489138307,0.00121091,70800.0,70791.0,0.042371]
[1773489141305,0.00121091,70800.0,70792.0,0.042371]
[1773489143605,0.00121091,70800.0,70793.0,0.04237]
[1773489143812,0.00121091,70800.0,70785.0,0.0014]
[1773489144607,0.00121091,70800.0,70792.0,0.04237]
[1773489154118,0.00121091,70800.0,70790.0,0.042372]
[1773489154308,0.00121091,70800.0,70785.0,0.17046881]
[1773489154508,0.00121091,70800.0,70785.0,0.17047466]
[1773489156018,0.00121091,70800.0,70791.0,0.042371]
[1773489161524,0.00121091,70800.0,70792.0,0.04237]
[1773489167230,0.0014,70799.0,70793.0,0.04237]
[1773489167419,0.0014,70798.0,70793.0,0.04237]
[1773489169125,0.0014,70797.0,70793.0,0.08129837]
[1773489169824,0.0014,70797.0,70793.0,0.04237]
[1773489172933,0.0014,70796.0,70793.0,0.04237]
[1773489173229,0.042363,70806.0,70793.0,0.04237]
[1773489173434,0.0014,70805.0,70793.0,0.04237]
[1773489178341,0.042364,70803.0,70791.0,0.042371]
[1773489178533,0.0014,70805.0,70783.0,0.03834801]
[1773489178534,0.043763,70805.0,70792.0,0.042371]
[1773489178729,0.08273501,70805.0,70792.0,0.042371]
[1773489178929,0.043763,70805.0,70792.0,0.042371]
[1773489179134,0.043763,70805.0,70793.0,0.04237]
[1773489180026,0.0014,70805.0,70793.0,0.04237]
[1773489191245,0.0014,70804.0,70795.0,0.03834801]
[1773489191435,0.0014,70803.0,70795.0,0.03834801]
[1773489191635,0.0014,70802.0,70795.0,0.03834801]
[1773489192247,0.0014,70802.0,70796.0,0.042368]
[1773489192640,0.0014,70802.0,70796.0,0.08071601]
[1773489194946,0.0014,70801.0,70798.0,0.03834801]
[1773489195150,0.0014,70800.0,70797.0,0.042368]
[1773489195343,0.0014,70799.0,70797.0,0.042368]
[1773489197748,0.0014,70799.0,70797.0,0.043368]
[1773489200049,0.0014,70799.0,70798.0,0.042367]
[1773489200249,0.0014,70799.0,70797.0,0.001]
[1773489200445,0.0014,70800.0,70799.0,0.042366]
[1773489202048,0.0014,70800.0,70799.0,0.043366]
[1773489202748,0.0014,70804.0,70799.0,0.043366]
[1773489203150,0.00897,70814.0,70799.0,0.03843094]
[1773489203347,0.02462651,70829.0,70802.0,0.03743094]
[1773489203348,0.0014,70813.0,70802.0,0.03743094]
[1773489203538,0.042353,70823.0,70810.0,0.042359]
[1773489203849,0.0014,70822.0,70811.0,0.07978994]
[1773489204048,0.0014,70821.0,70811.0,0.07978994]
[1773489204249,0.0014,70821.0,70809.0,0.04236]
[1773489204448,0.042353,70822.0,70809.0,0.04236]
[1773489204750,0.0014,70821.0,70809.0,0.04236]
[1773489206857,0.043754,70821.0,70809.0,0.04236]
[1773489207264,0.0014,70821.0,70811.0,0.042359]
[1773489207556,0.0014,70821.0,70809.0,0.042361]
[1773489212856,0.0789852,70816.0,70803.0,0.042364]
[1773489213156,0.0366282,70815.0,70803.0,0.042364]
[1773489213459,0.042357,70816.0,70803.0,0.042364]
[1773489213460,0.0014,70814.0,70803.0,0.042364]
[1773489218960,0.0014,70814.0,70788.0,0.00897]
[1773489218961,0.07367101,70813.0,70789.0,0.03743094]
[1773489219151,0.0366282,70815.0,70789.0,0.03743094]
[1773489219152,0.04236,70811.0,70789.0,0.03743094]
[1773489219460,0.042361,70809.0,70797.0,0.03743094]
[1773489219657,0.0014,70808.0,70797.0,0.03743094]
[1773489220059,0.043762,70808.0,70797.0,0.03743094]
[1773489220663,0.0014,70808.0,70794.0,0.042369]
[1773489221362,0.043762,70808.0,70794.0,0.042369]
[1773489223564,0.042362,70807.0,70794.0,0.042369]
[1773489232966,0.042363,70806.0,70794.0,0.042369]
[1773489233274,0.042362,70807.0,70795.0,0.042369]
[1773489234273,0.042363,70805.0,70788.0,0.0466909]
[1773489234473,0.043762,70808.0,70794.0,0.04237]
[1773489235272,0.042362,70807.0,70794.0,0.04237]
[1773489240168,0.0014,70808.0,70794.0,0.04237]
[1773489240972,0.0014,70808.0,70791.0,0.0377209]
[1773489241866,0.0014,70808.0,70789.0,0.0377209]
[1773489242975,0.0014,70808.0,70795.0,0.042368]
[1773489245074,0.043761,70808.0,70795.0,0.042368]
[1773489246581,0.0014,70808.0,70798.0,0.042367]
[1773489249074,0.043761,70808.0,70792.0,0.0377209]
[1773489249275,0.042362,70807.0,70792.0,0.0377209]
[1773489249578,0.0014,70808.0,70792.0,0.0377209]
[1773489249778,0.0014,70808.0,70783.0,0.0014]
[1773489249979,0.042363,70806.0,70794.0,0.042369]
[1773489251574,0.043762,70808.0,70795.0,0.042369]
[1773489253589,0.042364,70805.0,70793.0,0.04237]
[1773489254989,0.03979169,70808.0,70787.0,0.0377209]
[1773489255189,0.03839169,70807.0,70783.0,0.0391209]
[1773489256692,0.042364,70804.0,70791.0,0.042371]
[1773489257290,0.042365,70802.0,70789.0,0.042373]
[1773489257590,0.0014,70801.0,70790.0,0.042372]
[1773489260594,0.0014,70801.0,70786.0,0.2066208]
[1773489260886,0.1120627,70800.0,70786.0,0.1688999]
[1773489261087,0.042368,70797.0,70781.0,0.0007064]
[1773489261290,0.08075869,70799.0,70786.0,0.042374]
[1773489262286,0.042368,70798.0,70786.0,0.042374]
[1773489264693,0.042368,70798.0,70784.0,0.042375]
[1773489265694,0.03514892,70797.0,70781.0,0.0007064]
[1773489265895,0.03514892,70797.0,70781.0,0.0430834]
[1773489266994,0.042369,70795.0,70781.0,0.0430834]
[1773489267196,0.0014,70794.0,70781.0,0.0430834]
[1773489267388,0.03654892,70794.0,70781.0,0.0430834]
[1773489267789,0.07891892,70794.0,70781.0,0.0430834]
[1773489268800,0.042373,70789.0,70781.0,0.0007064]
[1773489268999,0.0014,70788.0,70781.0,0.0007064]
[1773489272201,0.0014,70788.0,70777.0,0.042379]
[1773489273302,0.043774,70788.0,70769.0,0.03613271]
[1773489274997,0.043774,70788.0,70775.0,0.042381]
[1773489277106,0.0014,70788.0,70771.0,0.03613271]
[1773489279006,0.0014,70788.0,70776.0,0.04238]
[1773489282506,0.042374,70787.0,70774.0,0.042381]
[1773489285314,0.042374,70787.0,70775.0,0.042381]
[1773489288715,0.043774,70788.0,70776.0,0.04238]
[1773489296912,0.042369,70796.0,70779.0,0.03332062]
[1773489297109,0.043769,70795.0,70782.0,0.042376]
[1773489297310,0.03358344,70793.0,70775.0,0.0014]
[1773489298018,0.042376,70783.0,70770.0,0.0014]
[1773489298323,0.042377,70782.0,70770.0,0.0014]
[1773489300219,0.042377,70782.0,70770.0,0.07514391]
[1773489300820,0.042377,70782.0,70770.0,0.043784]
[1773489303915,0.042377,70782.0,70771.0,0.0014]
[1773489310733,0.00898,70784.0,70771.0,0.0014]
[1773489310734,0.042378,70781.0,70771.0,0.0014]
[1773489311332,0.042378,70781.0,70768.0,0.051365]
[1773489311535,0.042378,70781.0,70769.0,0.0014]
[1773489312328,0.042378,70781.0,70768.0,0.051365]
[1773489312631,0.0014,70780.0,70769.0,0.0014]
[1773489315129,0.0014,70780.0,70770.0,0.0014]
[1773489315330,0.03358344,70779.0,70771.0,0.0014]
[1773489319139,0.03358344,70779.0,70760.0,0.1692676]
[1773489319341,0.07374391,70770.0,70747.0,0.042397]
[1773489319639,0.03358344,70759.0,70732.0,0.0014]
[1773489319841,0.07597744,70754.0,70740.0,0.07374391]
[1773489320139,0.21017842,70753.0,70740.0,0.07374391]
[1773489320338,0.21017842,70752.0,70740.0,0.07374391]
[1773489320538,0.21017842,70751.0,70741.0,0.0014]
[1773489320843,0.21017842,70750.0,70741.0,0.0014]
[1773489321044,0.21017842,70749.0,70741.0,0.0014]
[1773489321240,0.042395,70752.0,70741.0,0.0014]
[1773489321542,0.22539071,70751.0,70741.0,0.0014]
[1773489321752,0.22539071,70750.0,70741.0,0.0014]
[1773489321947,0.22539071,70749.0,70741.0,0.0014]
[1773489322138,0.03300007,70752.0,70741.0,0.0014]
[1773489322340,0.22522113,70751.0,70741.0,0.0014]
[1773489322543,0.03300007,70752.0,70738.0,0.051383]
[1773489322736,0.03440007,70750.0,70739.0,0.0014]
[1773489326232,0.03440007,70750.0,70738.0,0.051383]
[1773489326437,0.03440007,70750.0,70739.0,0.0014]
[1773489328241,0.07679607,70750.0,70739.0,0.0014]
[1773489328442,0.03300007,70749.0,70739.0,0.0014]
[1773489329043,0.03300007,70749.0,70738.0,0.00898]
[1773489329235,0.03300007,70749.0,70739.0,0.0014]
[1773489330145,0.0014,70750.0,70739.0,0.0014]
[1773489330449,0.03300007,70747.0,70739.0,0.0014]
[1773489330950,0.03300007,70747.0,70738.0,0.00898]
[1773489331146,0.03300007,70745.0,70731.0,0.0007069]
[1773489331343,0.03300007,70745.0,70732.0,0.043806]
[1773489332052,0.03300007,70745.0,70733.0,0.042406]
[1773489334450,0.03300007,70745.0,70734.0,0.042405]
[1773489334656,0.0014,70744.0,70734.0,0.042405]
[1773489336655,0.0014,70744.0,70735.0,0.0014]
[1773489337857,0.0014,70744.0,70736.0,0.042404]
[1773489338354,0.00013098,70746.0,70736.0,0.042404]
[1773489338555,0.0014,70745.0,70736.0,0.042404]
[1773489340460,0.0014,70751.0,70735.0,0.07522065]
[1773489340649,0.22475843,70750.0,70740.0,0.042401]
[1773489340855,0.0014,70751.0,70740.0,0.042401]
[1773489341051,0.22474452,70750.0,70740.0,0.042401]
[1773489341360,0.22481255,70749.0,70740.0,0.042401]
[1773489341557,0.0014,70751.0,70740.0,0.042401]
[1773489341860,0.22481255,70750.0,70740.0,0.042401]
[1773489342062,0.22481255,70749.0,70740.0,0.042401]
[1773489342361,0.0014,70751.0,70740.0,0.042401]
[1773489342557,0.22489356,70750.0,70740.0,0.042401]
[1773489342755,0.22489356,70749.0,70740.0,0.042401]
[1773489342956,0.03440007,70751.0,70740.0,0.042401]
[1773489343261,0.22489363,70750.0,70740.0,0.042401]
[1773489343461,0.22489363,70749.0,70740.0,0.042401]
[1773489343760,0.22489363,70748.0,70740.0,0.042401]
[1773489343961,0.03440007,70751.0,70740.0,0.042401]
[1773489344157,0.22498985,70750.0,70740.0,0.042401]
[1773489344357,0.22498985,70749.0,70740.0,0.042401]
[1773489344551,0.22498985,70748.0,70740.0,0.042401]
[1773489344752,0.22498985,70747.0,70740.0,0.042401]
[1773489344958,0.03440007,70751.0,70740.0,0.042401]
[1773489345158,0.26338722,70750.0,70741.0,0.042401]
[1773489345362,0.26338722,70749.0,70741.0,0.042401]
[1773489345664,0.26338722,70748.0,70741.0,0.042401]
[1773489345859,0.26338722,70747.0,70741.0,0.042401]
[1773489346053,0.26338722,70746.0,70741.0,0.042401]
[1773489346254,0.26338722,70745.0,70741.0,0.042401]
[1773489346456,8e-07,70744.0,70741.0,0.042401]
[1773489346759,0.042394,70753.0,70741.0,0.042401]
[1773489347152,0.07539407,70753.0,70741.0,0.042401]
[1773489347755,0.03300007,70752.0,70741.0,0.042401]
[1773489349564,0.07539507,70752.0,70739.0,0.042402]
[1773489350164,0.03357724,70751.0,70739.0,0.042402]
[1773489351261,0.03357724,70751.0,70735.0,0.01038]
[1773489351262,0.0338131,70746.0,70737.0,0.042404]
[1773489354061,0.0338131,70746.0,70735.0,0.01038]
[1773489354268,0.0338131,70746.0,70738.0,0.042403]
[1773489354565,0.0338131,70750.0,70738.0,0.042403]
[1773489358572,0.24823194,70749.0,70738.0,0.042403]
[1773489358772,0.24823194,70748.0,70738.0,0.042403]
[1773489358965,0.24823194,70747.0,70738.0,0.042403]
[1773489359165,0.24823194,70746.0,70738.0,0.042403]
[1773489359465,0.24823194,70745.0,70738.0,0.042403]
[1773489359664,0.24823194,70744.0,70738.0,0.042403]
[1773489359965,0.24823194,70743.0,70738.0,0.042403]
[1773489360164,0.24823194,70742.0,70735.0,0.01038]
[1773489360369,9.4e-07,70741.0,70735.0,0.01038]
[1773489360568,0.0338131,70749.0,70735.0,0.0014]
[1773489361071,0.0338131,70748.0,70735.0,0.0014]
[1773489361764,0.0338131,70748.0,70731.0,0.0007069]
[1773489361970,0.0338131,70747.0,70735.0,0.0014]
[1773489362973,0.0338131,70747.0,70736.0,0.042404]
[1773489363569,0.0338131,70747.0,70735.0,0.0014]
[1773489364974,0.0338131,70746.0,70735.0,0.0014]
[1773489366275,0.0338131,70746.0,70734.0,0.042405]
[1773489366578,0.0338131,70745.0,70734.0,0.043805]
[1773489372184,0.043797,70748.0,70734.0,0.043805]
[1773489372389,0.23858044,70747.0,70735.0,0.042404]
[1773489372592,0.23858044,70746.0,70735.0,0.042404]
[1773489372886,0.23858044,70745.0,70734.0,0.0014]
[1773489373086,0.23858044,70744.0,70734.0,0.0014]
[1773489373288,0.0014,70748.0,70734.0,0.0014]
[1773489373486,0.23857577,70747.0,70734.0,0.0014]
[1773489373687,0.23857577,70746.0,70734.0,0.0014]
[1773489373889,0.23857577,70745.0,70734.0,0.0014]
[1773489374085,0.0014,70748.0,70736.0,0.042404]
[1773489374086,0.23857577,70744.0,70736.0,0.042404]
[1773489374279,0.23857577,70743.0,70736.0,0.042404]
[1773489374482,0.0338131,70745.0,70736.0,0.042404]
[1773489374682,0.23857604,70744.0,70736.0,0.042404]
[1773489374881,0.23857604,70743.0,70736.0,0.042404]
[1773489375081,0.0338131,70745.0,70736.0,0.042404]
[1773489377490,0.043797,70748.0,70736.0,0.042404]
[1773489377690,0.22048167,70747.0,70736.0,0.042404]
[1773489377989,0.22048167,70746.0,70736.0,0.042404]
[1773489378185,0.22048167,70745.0,70736.0,0.042404]
[1773489378387,0.22048167,70744.0,70736.0,0.042404]
[1773489378588,0.043797,70748.0,70736.0,0.042404]
[1773489378793,0.22050889,70747.0,70736.0,0.042404]
[1773489378996,0.22050889,70746.0,70736.0,0.042404]
[1773489379197,0.22050889,70745.0,70736.0,0.042404]
[1773489379400,0.22050889,70744.0,70736.0,0.042404]
[1773489379697,0.22050889,70743.0,70736.0,0.042404]
[1773489379900,0.043797,70748.0,70736.0,0.042404]
[1773489380095,0.22054341,70747.0,70736.0,0.042404]
[1773489380295,0.22054341,70746.0,70736.0,0.042404]
[1773489380497,0.0338131,70744.0,70734.0,0.043805]
[1773489380798,0.22054341,70743.0,70734.0,0.043805]
[1773489381903,0.22054341,70743.0,70734.0,0.0014]
[1773489382109,0.22054341,70743.0,70734.0,0.043805]
[1773489383201,0.22054341,70743.0,70736.0,0.042404]
[1773489389214,0.22054341,70742.0,70736.0,0.042404]
[1773489389415,0.22054341,70741.0,70736.0,0.042404]
[1773489389715,0.042398,70747.0,70736.0,0.042404]
[1773489389716,0.22054341,70740.0,70736.0,0.042404]
[1773489389910,0.22054341,70739.0,70736.0,0.042404]
[1773489390110,0.03347511,70745.0,70736.0,0.042404]
[1773489390310,0.22016901,70744.0,70736.0,0.042404]
[1773489390511,0.22016901,70743.0,70736.0,0.042404]
[1773489390712,0.22016901,70742.0,70736.0,0.042404]
[1773489391010,0.22016901,70741.0,70736.0,0.042404]
[1773489391211,0.22016901,70740.0,70736.0,0.042404]
[1773489391411,0.03347511,70745.0,70736.0,0.042404]
[1773489391612,0.22017033,70744.0,70736.0,0.042404]
[1773489391816,0.22017033,70743.0,70736.0,0.042404]
[1773489392112,0.22017033,70742.0,70736.0,0.042404]
[1773489392313,0.22017033,70741.0,70736.0,0.043404]
[1773489392514,0.22017033,70740.0,70736.0,0.043404]
[1773489392713,0.03347511,70745.0,70736.0,0.043404]
[1773489392914,0.22017158,70744.0,70736.0,0.043404]
[1773489393116,0.22017158,70743.0,70736.0,0.043404]
[1773489393319,0.22017158,70742.0,70736.0,0.043404]
[1773489393619,0.22017158,70741.0,70736.0,0.043404]
[1773489393809,0.22017158,70740.0,70736.0,0.042404]
[1773489394009,0.22017158,70739.0,70736.0,0.042404]
[1773489394318,0.03347511,70744.0,70736.0,0.042404]
[1773489394514,0.22017414,70743.0,70736.0,0.042404]
[1773489394818,0.22017414,70742.0,70736.0,0.042404]
[1773489395013,0.25364925,70741.0,70736.0,0.043404]
[1773489395218,0.22017414,70740.0,70736.0,0.043404]